fUSD/lending_fUSD_20241015
["ID","MTS","AMOUNT","RATE_DAILY","PERIOD"]
[340267166,1728957038546,-2047.47935272,0.0001716,2]
[340267167,1728957038555,-471.16,0.0001745,2]
[340267168,1728957038564,-150.88873181,0.00018888,2]
[340267169,1728957038573,-150.0,0.00019258,2]
[340267170,1728957038583,-1000.0,0.00019314,2]
[340267171,1728957038592,-4246.13,0.00019314,2]
[340267172,1728957038601,-500.0,0.00019333,2]
[340267173,1728957038611,-200.0,0.00019344,2]
[340267174,1728957038620,-250.0,0.00019385,2]
[340267175,1728957038629,-221.71,0.00019386,2]
[340267176,1728957038638,-181.81,0.00019412,2]
[340267177,1728957038647,-1852.42,0.00019414,2]
[340267178,1728957038656,-12554.21809713,0.00019429,2]
[340267179,1728957038668,-2834.40190287,0.00019429,2]
[340267180,1728957038681,-250.0,0.00019446,2]
[340267181,1728957038691,-300.42,0.00019492,2]
[340267182,1728957038700,-139.97646194,0.00019714,2]
[340267183,1728957038724,-331.18353806,0.00019714,2]
[340267184,1728957038733,-151.0,0.00019725,2]
[340267185,1728957038742,-761.98,0.00020219,2]
[340267186,1728957038754,-1500.0,0.000205,2]
[340267187,1728957038763,-1004.0,0.000205,2]
[340267188,1728957038773,-2595.63994412,0.00020649,2]
[340267189,1728957038784,-358.33485164,0.00020649,2]
[340267190,1728957038795,-285.49172499,0.00020649,2]
[340267191,1728957038806,-538.79913189,0.00020649,2]
[340267192,1728957038828,-2113.65355014,0.00020649,2]
[340267193,1728957038839,-955.17514867,0.00020649,2]
[340267194,1728957038849,-1520.98047815,0.00020649,2]
[340267195,1728957038860,-1357.22542988,0.00020649,2]
[340267196,1728957038871,-2084.0327375,0.00020649,2]
[340267197,1728957038882,-3251.88530753,0.00020649,2]
[340267198,1728957038893,-2166.78342138,0.00020649,2]
[340267199,1728957038904,-283.45450349,0.00020649,2]
[340267200,1728957038916,-566.76354058,0.00020649,2]
[340267207,1728957040403,-4276.48182047,0.00020649,2]
[340267208,1728957040414,-410.13177793,0.00020649,2]
[340267209,1728957040426,-485.3980518,0.00020649,2]
[340267210,1728957040664,-547.08895221,0.00020649,2]
[340267211,1728957040679,-611.99999998,0.00020649,2]
[340267212,1728957040767,-8913.9507043,0.00020649,2]
[340267213,1728957040779,-669.44310652,0.00020649,2]
[340267219,1728957044197,-6615.29033597,0.00020649,2]
[340267234,1728957046367,-552.84779656,0.00020649,2]
[340267235,1728957046379,-4947.25889958,0.00020649,2]
[340267236,1728957046391,-349.99877428,0.00020649,2]
[340267237,1728957046403,-3152.5,0.00020649,2]
[340267238,1728957046573,-430860.7840499,0.00020649,2]
[340267239,1728957046645,-28451.6429,0.00020649,2]
[340267241,1728957067480,168.29,0.00010959,2]
[340267243,1728957508963,-3201.0,0.000151,2]
[340267244,1728957643068,-436.36,0.00017979,2]
[340267245,1728957644852,563.17868835,0.00027,60]
[340267246,1728957664248,-300.0,0.00019725,2]
[340267247,1728957664270,-250.0,0.00019781,2]
[340267248,1728957664293,-200.0,0.00019847,2]
[340267249,1728957664315,-184.9,0.0001987,2]
[340267250,1728957664340,-250.0,0.00019906,2]
[340267251,1728957664363,-177.88,0.00019935,2]
[340267252,1728957691175,-1200.0,0.000207,7]
[340267253,1728957691197,-2500.0,0.000208,7]
[340267254,1728957707843,226.43,0.00027,60]
[340267255,1728957711660,-3800.0,0.000209,7]
[340267257,1728957821578,166.18,0.00024849,120]
[340267284,1728958232621,-290.832,0.00018009,2]
[340267307,1728958238642,-135.288,0.00018009,2]
[340267309,1728958238653,-250.0,0.00019768,2]
[340267311,1728958238663,-840.0,0.00019833,2]
[340267312,1728958238672,-166.18,0.00019879,2]
[340267313,1728958238681,-42.16910954,0.00019937,2]
[340267314,1728958239128,-207.83089046,0.00019937,2]
[340267315,1728958239137,-790.71239013,0.00019952,2]
[340267321,1728958240645,-250.68702582,0.00019952,2]
[340267322,1728958240657,-347.6450004,0.00019952,2]
[340267323,1728958240668,-260.1341916,0.00019952,2]
[340267324,1728958240679,-4956.4384741,0.00019952,2]
[340267325,1728958240791,-1683.38291795,0.00019952,2]
[340267326,1728958240801,-713.20068211,0.00020219,2]
[340267334,1728958243730,-42.45931789,0.00020219,2]
[340267335,1728958243740,-165.46359524,0.00020243,2]
[340267336,1728958243750,-426.12,0.00020273,2]
[340267337,1728958243759,-212.6,0.000203,2]
[340267338,1728958243769,-541.87,0.000203,2]
[340267339,1728958243778,-1000.0,0.000203,2]
[340267340,1728958243788,-150.25848918,0.00020648,2]
[340267341,1728958243797,-574.8167731,0.00020648,2]
[340267342,1728958243806,-527.89171737,0.00020649,2]
[340267343,1728958243895,-430.18108644,0.00020649,2]
[340267344,1728958244089,-2075.20858548,0.00020649,2]
[340267354,1728958246579,-130877.70235138,0.00020649,2]
[340267355,1728958246589,-900.0,0.000207,7]
[340267356,1728958246599,-228.56434857,0.0002077,2]
[340267357,1728958246608,-150.0,0.00020779,2]
[340267358,1728958246618,-39040.1132,0.0002078,2]
[340267359,1728958246627,-1749.7165,0.0002078,2]
[340267360,1728958246636,-500.0,0.0002078,2]
[340267361,1728958246646,-2707.0538,0.0002078,2]
[340267362,1728958246655,-1227.6843,0.0002078,2]
[340267363,1728958246664,-739.58883785,0.00020785,2]
[340267364,1728958246673,-1746.41721062,0.00020789,2]
[340267365,1728958246682,-1829.057619,0.000208,2]
[340267366,1728958246691,-535.04,0.000208,2]
[340267367,1728958246705,-291.44,0.000208,2]
[340267368,1728958246714,-1800.0,0.000208,7]
[340267369,1728958246724,-1006.0,0.000208,2]
[340267370,1728958246733,-198.48244376,0.0002087,2]
[340267371,1728958246743,-503.07669392,0.00020873,2]
[340267372,1728958246751,-8083.5048,0.00020879,2]
[340267373,1728958246760,-899.998,0.00020879,2]
[340267374,1728958246772,-15018.0059,0.0002088,2]
[340267375,1728958246781,-29492.36624974,0.0002088,2]
[340267376,1728958246890,-24031.57,0.0002088,2]
[340267377,1728958246941,-354.02385026,0.0002088,2]
[340267379,1728958246950,-633.56920439,0.0002088,2]
[340267616,1728958330275,182.13,0.00025283,120]
[340267618,1728959127545,445.65685374,0.00023,120]
[340267622,1728959247826,900.0,0.000108,3]
[340267623,1728959250835,1900.0,0.000109,3]
[340267624,1728959279066,151.40055931,0.00027,120]
[340267630,1728959318364,157.76777566,0.0002509,120]
[340267650,1728959431749,-163.11,0.00010959,2]
[340267651,1728959431759,-150.0,0.00010989,2]
[340267652,1728959431769,-2391.00559046,0.0001099,2]
[340267653,1728959431780,-496.91209351,0.0001099,2]
[340267654,1728959431792,-263.44652171,0.0001099,2]
[340267655,1728959431897,-4901.89310082,0.0001099,2]
[340267656,1728959431909,-306.48999997,0.0001099,2]
[340267657,1728959432036,-828.17103258,0.0001099,2]
[340267676,1728959437618,-1089.68148271,0.0001099,2]
[340267681,1728959437741,-2416.74025158,0.0001099,2]
[340267682,1728959437752,-1732.37999999,0.0001099,2]
[340267683,1728959437763,-276.14857609,0.0001099,2]
[340267684,1728959437775,-4314.98017366,0.0001099,2]
[340267685,1728959437785,-443.81585153,0.0001099,2]
[340267686,1728959437864,-338.77543285,0.0001099,2]
[340267687,1728959437875,-541.90799385,0.0001099,2]
[340267688,1728959437887,-7474.19999996,0.0001099,2]
[340267689,1728959437898,-697.22222227,0.0001099,2]
[340267690,1728959437909,-574.98736815,0.0001099,2]
[340267694,1728959439862,-1990.44333304,0.0001099,2]
[340267695,1728959439873,-418.28382068,0.0001099,2]
[340267696,1728959439885,-362.52249273,0.0001099,2]
[340267697,1728959439896,-1064.4559759,0.0001099,2]
[340267698,1728959439978,-475.68477976,0.0001099,2]
[340267699,1728959439991,-552.33090042,0.0001099,2]
[340267700,1728959440005,-32832.40933508,0.0001099,2]
[340267701,1728959440017,-676.78766256,0.0001099,2]
[340267702,1728959440137,-544.44569064,0.0001099,2]
[340267703,1728959440148,-429.15446819,0.0001099,2]
[340267704,1728959440161,-2672.09213927,0.0001099,2]
[340267705,1728959440171,-487.83317828,0.00010999,2]
[340267706,1728959440180,-264.99760516,0.00010999,2]
[340267707,1728959440189,-4510.85270183,0.00011,2]
[340267732,1728959442889,-734.26926881,0.00011,2]
[340267733,1728959443025,-39596.31609722,0.00011,2]
[340267734,1728959443149,-7024.14421203,0.00011,2]
[340267735,1728959443160,-6601.1393769,0.00011,2]
[340267737,1728959445763,-42555.83706298,0.00011,2]
[340267740,1728959533048,170.97,0.00025968,120]
[340267745,1728959652313,-156.59479323,0.000109,2]
[340267746,1728959652336,-665.62995411,0.000109,2]
[340267747,1728959652356,-176.43295454,0.00010973,2]
[340267748,1728959652376,-1.34229812,0.00010999,2]
[340267749,1728959653063,150.0,0.00026,120]
[340267750,1728959654552,-1000.0,0.00010999,2]
[340267751,1728959655623,-1000.0,0.00010999,2]
[340267752,1728959656697,-567.91570976,0.00010999,2]
[340267753,1728959656717,-150.0,0.00010999,2]
[340267754,1728959656741,-282.08429024,0.00011,2]
[340267755,1728959658394,-1000.0,0.00011,2]
[340267756,1728959659871,-1000.0,0.00011,2]
[340267757,1728959661450,-1000.0,0.00011,2]
[340267758,1728959663304,-1000.0,0.00011,2]
[340267759,1728959664694,-1000.0,0.00011,2]
[340267760,1728959665926,-1000.0,0.00011,2]
[340267761,1728959670647,-200.0,0.00011,2]
[340267763,1728959753420,200.0,0.00027,60]
[340267764,1728959801310,266.0,0.00027,120]
[340267765,1728959815554,773.1943044,0.0002,40]
[340267766,1728959878897,228.517301,0.00027,60]
[340267767,1728959981382,-177.35220666,0.0001078,2]
[340267768,1728959981403,-194.895,0.0001078,2]
[340267769,1728959981422,-167.52,0.00010959,2]
[340267770,1728959981446,-460.23279334,0.00011,2]
[340267771,1728959983824,-1000.0,0.00011,2]
[340267772,1728959984839,-1000.0,0.00011,2]
[340267773,1728959985884,-1000.0,0.00011,2]
[340267774,1728959986856,-1000.0,0.00011,2]
[340267775,1728959987877,-1000.0,0.00011,2]
[340267776,1728959988981,-1000.0,0.00011,2]
[340267777,1728959990008,-1000.0,0.00011,2]
[340267778,1728959991048,-1000.0,0.00011,2]
[340267779,1728959992185,-1000.0,0.00011,2]
[340267780,1728960055252,-1000.0,0.000109,2]
[340267781,1728960056912,-333.39739274,0.000109,2]
[340267782,1728960056940,-666.60260726,0.00011,2]
[340267783,1728960058009,-1000.0,0.00011,2]
[340267784,1728960059154,-1000.0,0.00011,2]
[340267785,1728960060383,-1000.0,0.00011,2]
[340267786,1728960061550,-1000.0,0.00011,2]
[340267787,1728960062699,-1000.0,0.00011,2]
[340267788,1728960063848,-1000.0,0.00011,2]
[340267789,1728960064972,-1000.0,0.00011,2]
[340267790,1728960070961,-400.0,0.00011,2]
[340267791,1728960427083,800.0,0.000108,3]
[340267792,1728960429171,1700.0,0.000109,3]
[340267798,1728960631881,-166.54153586,0.000109,2]
[340267799,1728960631890,-1200.05765352,0.000109,2]
[340267800,1728960631900,-150.0,0.00010999,2]
[340267801,1728960631909,-14828.91705916,0.00011,2]
[340267802,1728960631920,-2527.75,0.00011,2]
[340267803,1728960632060,-500.0,0.00011,2]
[340267813,1728960637867,-350.13427584,0.00011,2]
[340267814,1728960638067,-685.6083245,0.00011,2]
[340267815,1728960638079,-441.44978484,0.00011,2]
[340267817,1728960639813,-2008.44440045,0.00011,2]
[340267819,1728960639824,-542.2,0.00011,2]
[340267820,1728960640019,-171044.11494661,0.00011,2]
[340267821,1728960640030,-3587.21019812,0.00011,2]
[340267824,1728960640500,-127.36987124,0.00011,2]
[340267825,1728960640513,-574.0,0.00011,2]
[340267843,1728960645905,-806.41047797,0.00011,2]
[340267844,1728960645916,-58852.10901826,0.00011,2]
[340267846,1728960646085,-6309.11556936,0.00011,2]
[340267847,1728960797398,202.226754,0.00027,120]
[340267848,1728961131749,550.0,0.0001,2]
[340267849,1728961465181,-2600.0,0.000139,5]
[340267850,1728961466948,152.93,9.838e-05,2]
[340267851,1728961639308,600.0,0.000109,3]
[340267869,1728961832218,-194.895,0.0001078,2]
[340267870,1728961832228,-1373.12156754,0.000109,2]
[340267871,1728961832237,-161.82,0.00010959,2]
[340267872,1728961832247,-300.0,0.00010999,2]
[340267873,1728961832257,-150.0,0.00010999,2]
[340267874,1728961832267,-300.0,0.00010999,2]
[340267875,1728961832276,-42386.12878842,0.00011,2]
[340267876,1728961832287,-1491.79775341,0.00011,2]
[340267877,1728961832298,-34850.54500559,0.00011,2]
[340267881,1728961840053,-500.00813981,0.00011,2]
[340267889,1728961846269,-2633.52661891,0.00011,2]
[340267890,1728961846665,-61290.78379243,0.00011,2]
[340267891,1728961890782,214.7,0.00027,60]
[340267893,1728962709620,662.48,9.894e-05,2]
[340267894,1728962765249,1003.0,0.00027,60]
[340267895,1728962850417,500.0,0.000108,3]
[340267896,1728962852516,1100.0,0.000109,3]
[340267903,1728962938269,550.0,0.0001,2]
[340267907,1728963032227,-194.896,0.0001078,2]
[340267908,1728963032239,-1310.35778073,0.000109,2]
[340267910,1728963032250,-166.11,0.00010959,2]
[340267912,1728963032261,-167.52,0.00010959,2]
[340267914,1728963032273,-300.0,0.00010989,2]
[340267917,1728963032283,-1466.87691022,0.0001099,2]
[340267919,1728963032296,-9807.59285212,0.0001099,2]
[340267922,1728963032373,-544.0998858,0.0001099,2]
[340267923,1728963032386,-665.27138989,0.0001099,2]
[340267924,1728963032400,-11667.83957271,0.0001099,2]
[340267925,1728963032411,-283.57497789,0.00010999,2]
[340267926,1728963032422,-150.0,0.00010999,2]
[340267927,1728963032433,-341.4832248,0.00010999,2]
[340267928,1728963032443,-3821.95701789,0.00011,2]
[340267929,1728963032456,-951.61228602,0.00011,2]
[340267981,1728963038338,-5757.66,0.00011,2]
[340267982,1728963038350,-22163.26167133,0.00011,2]
[340267983,1728963038667,-13216.40318923,0.00011,2]
[340267986,1728963040349,-4477.87042098,0.00011,2]
[340267988,1728963040360,-198943.85490148,0.00011,2]
[340267989,1728963040630,-2336.89922027,0.00011,2]
[340267990,1728963040641,-1980.43629903,0.00011,2]
[340267991,1728963040660,-12866.62287469,0.00011,2]
[340267994,1728963043467,-276.50608329,0.00011,2]
[340267995,1728963043530,-90993.47699808,0.00011,2]
[340267996,1728963043541,-22980.60440252,0.00011,2]
[340267997,1728963043601,-2883.30956889,0.00011,2]
[340267999,1728963046395,-19714.12496952,0.00011,2]
[340268000,1728963046695,-776.83217008,0.00011,2]
[340268003,1728963250778,162.4973494,0.00012,7]
[340268004,1728963251927,652.63,9.401e-05,2]
[340268005,1728963286924,-246.30291802,0.00010579,2]
[340268006,1728963286955,-300.0,0.00010679,2]
[340268007,1728963286986,-1229.5086,0.0001068,2]
[340268008,1728963287018,-1179.32200263,0.000109,2]
[340268009,1728963287051,-160.19,0.00010959,2]
[340268010,1728963287087,-16884.67647935,0.00011,2]
[340268020,1728963693223,223.38166795,0.00027,60]
[340268042,1728963790419,630.92,9.143e-05,2]
[340268048,1728963959606,-8900.732182,0.00010845,2]
[340268049,1728963959628,-1061.38980243,0.000109,2]
[340268050,1728963959648,-161.82,0.00010959,2]
[340268051,1728963959669,-150.0,0.00010986,2]
[340268052,1728963959688,-299.45217015,0.00010999,2]
[340268053,1728963959710,-734.54654601,0.00010999,2]
[340268054,1728963959734,-279859.83865381,0.00011,2]
[340268055,1728963959756,-43730.09124893,0.00011,2]
[340268056,1728963959782,-593982.03831567,0.00011,2]
[340268058,1728963966269,-10273.94198443,0.00011,2]
[340268082,1728964232334,-1005.49,0.0001105,2]
[340268083,1728964232343,-261.35,0.0001107,2]
[340268084,1728964232353,-171.34,0.00011074,2]
[340268085,1728964232362,-2773.41431342,0.00011078,2]
[340268086,1728964232373,-630.2892165,0.00011078,2]
[340268087,1728964232437,-291.1644776,0.00011078,2]
[340268088,1728964232530,-4735.29199248,0.00011078,2]
[340268089,1728964232539,-224.0,0.00011082,2]
[340268090,1728964232550,-337.22,0.00011083,2]
[340268091,1728964232560,-499.99,0.00011083,2]
[340268092,1728964232569,-344.11,0.00011088,2]
[340268093,1728964232578,-250.0,0.00011092,2]
[340268094,1728964232588,-1200.58,0.00011113,2]
[340268095,1728964232597,-150.07,0.00011118,2]
[340268096,1728964232606,-6378.03,0.00011118,2]
[340268097,1728964232616,-900.23449581,0.00011118,2]
[340268098,1728964232627,-1647.93550419,0.00011118,2]
[340268099,1728964232636,-150.99,0.00011118,2]
[340268100,1728964232646,-1078.52,0.00011134,2]
[340268101,1728964232655,-150.07,0.00011136,2]
[340268102,1728964232665,-3319.5,0.00011141,2]
[340268103,1728964232674,-999.99,0.00011142,2]
[340268104,1728964232683,-2422.48,0.00011142,2]
[340268105,1728964232693,-250.0,0.00011146,2]
[340268106,1728964232702,-150.07,0.00011155,2]
[340268107,1728964232711,-150.07,0.00011173,2]
[340268108,1728964232720,-1500.0,0.00011215,2]
[340268109,1728964232730,-1000.0,0.00011247,2]
[340268110,1728964232739,-250.0,0.00011262,2]
[340268111,1728964232748,-9871.79062572,0.00011262,2]
[340268304,1728964238334,-818.775,0.00011262,2]
[340268305,1728964238411,-987.45743925,0.00011262,2]
[340268306,1728964238422,-7813.97693503,0.00011262,2]
[340268307,1728964238431,-171.69,0.00011298,2]
[340268308,1728964238440,-182.13,0.00011311,2]
[340268309,1728964238449,-169.84,0.00011323,2]
[340268310,1728964238458,-158.08,0.00011342,2]
[340268311,1728964238467,-630.92,0.00011407,2]
[340268312,1728964238476,-668.44,0.00011411,2]
[340268313,1728964238485,-261.35,0.00011623,2]
[340268314,1728964238494,-179.92,0.00011696,2]
[340268315,1728964238504,-600.0,0.00012,2]
[340268316,1728964238513,-261.35,0.00012177,2]
[340268317,1728964238522,-2746.683,0.00012301,2]
[340268318,1728964238531,-824.0,0.00012328,2]
[340268319,1728964238540,-151.0,0.00012329,2]
[340268320,1728964238550,-151.0,0.00012329,2]
[340268321,1728964238558,-151.0,0.00012329,2]
[340268322,1728964238567,-151.0,0.00012329,2]
[340268323,1728964238576,-557.878291,0.00012329,2]
[340268324,1728964238585,-557.878291,0.00012329,2]
[340268325,1728964238594,-151.0,0.00012329,2]
[340268326,1728964238603,-275.82256,0.00012329,2]
[340268327,1728964238611,-151.0,0.00012329,2]
[340268328,1728964238620,-151.0,0.00012329,2]
[340268329,1728964238629,-188.014086,0.00012329,2]
[340268330,1728964238638,-151.0,0.00012329,2]
[340268331,1728964238647,-151.0,0.00012329,2]
[340268332,1728964238656,-169.84,0.00012455,2]
[340268333,1728964238665,-1061.38980235,0.00012456,2]
[340268334,1728964238675,-150.0,0.000125,2]
[340268335,1728964238684,-166.28777745,0.00012592,2]
[340268336,1728964238693,-1000.0,0.00012653,2]
[340268337,1728964238703,-154.681062,0.00012692,2]
[340268338,1728964238712,-151.91308,0.00012692,2]
[340268339,1728964238721,-151.0,0.00012692,2]
[340268340,1728964238730,-171.69,0.0001271,2]
[340268341,1728964238740,-261.35,0.0001273,2]
[340268342,1728964238749,-557.878291,0.00012906,2]
[340268343,1728964238759,-557.878291,0.00012906,2]
[340268344,1728964238769,-261.35,0.00013284,2]
[340268345,1728964238778,-151.0,0.00013587,2]
[340268346,1728964238787,-246.814693,0.00013587,2]
[340268347,1728964238797,-151.0,0.00013587,2]
[340268348,1728964238806,-169.84,0.00013587,2]
[340268349,1728964238815,-630.92,0.00013671,2]
[340268350,1728964238825,-249.348097,0.000138,2]
[340268351,1728964238834,-211.887983,0.000138,2]
[340268352,1728964238843,-151.0,0.000138,2]
[340268353,1728964238852,-151.0,0.000138,2]
[340268354,1728964238862,-216.077895,0.000138,2]
[340268355,1728964238871,-151.0,0.000138,2]
[340268356,1728964238880,-151.0,0.000138,2]
[340268357,1728964238889,-557.878291,0.000138,2]
[340268358,1728964238898,-557.878291,0.000138,2]
[340268359,1728964238907,-167.819382,0.000138,2]
[340268360,1728964238917,-151.0,0.000138,2]
[340268361,1728964238926,-375.64737668,0.0001389,3]
[340268362,1728964238938,-1031.22409416,0.0001389,3]
[340268363,1728964238949,-37145.9829598,0.0001389,3]
[340268364,1728964238960,-342.48028357,0.0001389,3]
[340268365,1728964238972,-644.68559983,0.0001389,3]
[340268366,1728964238982,-1016.61,0.0001389,3]
[340268367,1728964238993,-1715.6453042,0.0001389,3]
[340268370,1728964239008,-828.6512679,0.0001389,3]
[340268375,1728964239053,-478.31959918,0.0001389,3]
[340268424,1728964240472,-343.34026637,0.0001389,3]
[340268425,1728964240484,-1964.39639178,0.0001389,3]
[340268426,1728964240588,-1419.0989243,0.0001389,3]
[340268427,1728964240617,-2555.8146314,0.0001389,3]
[340268432,1728964243421,-8891.00278943,0.0001389,3]
[340268433,1728964243433,-541.08058549,0.0001389,3]
[340268434,1728964243444,-529.685291,0.0001389,3]
[340268435,1728964243455,-1965.0,0.0001389,3]
[340268436,1728964243467,-1068.93575573,0.0001389,3]
[340268437,1728964243478,-455.24917089,0.0001389,3]
[340268438,1728964243538,-1710.81176509,0.0001389,3]
[340268439,1728964243550,-484.56846424,0.0001389,3]
[340268440,1728964243563,-1886.64857172,0.0001389,3]
[340268441,1728964243574,-305.67881732,0.0001389,3]
[340268442,1728964243585,-1102.39785248,0.0001389,3]
[340268443,1728964243599,-738.48,0.0001389,3]
[340268444,1728964243610,-13102.56263663,0.0001389,3]
[340268445,1728964243622,-489.18296135,0.0001389,3]
[340268446,1728964243633,-362.76485203,0.0001389,3]
[340268447,1728964243663,-587.96575786,0.0001389,3]
[340268448,1728964243781,-307.27600348,0.0001389,3]
[340268449,1728964243792,-1240.6631406,0.0001389,3]
[340268450,1728964243804,-5954.79840006,0.0001389,3]
[340268451,1728964243946,-5470.86046879,0.0001389,3]
[340268454,1728964244109,-2558.2578458,0.0001389,3]
[340268455,1728964244121,-1668.02297108,0.0001389,3]
[340268456,1728964244133,-993.12736041,0.0001389,3]
[340268457,1728964244148,-444.24779552,0.0001389,3]
[340268458,1728964244160,-463.3999995,0.0001389,3]
[340268460,1728964246300,-907.5,0.0001389,3]
[340268461,1728964246314,-3614.48,0.0001389,3]
[340268462,1728964246326,-555.0,0.0001389,3]
[340268463,1728964246337,-1822.00232082,0.0001389,3]
[340268464,1728964246348,-6550.7,0.0001389,3]
[340268465,1728964246360,-560.55609118,0.0001389,3]
[340268466,1728964246371,-398.01722633,0.0001389,3]
[340268467,1728964246381,-151.0,0.000139,2]
[340268468,1728964246390,-557.878291,0.000139,2]
[340268469,1728964246399,-219.78448267,0.000139,2]
[340268470,1728964246411,-338.09380833,0.000139,2]
[340268471,1728964246420,-459.4065891,0.000139,2]
[340268472,1728964246431,-98.4717019,0.000139,2]
[340268473,1728964246440,-261.61064374,0.000139,2]
[340268474,1728964246451,-296.26764726,0.000139,2]
[340268475,1728964246460,-151.0,0.000139,2]
[340268476,1728964246469,-151.0,0.000139,2]
[340268477,1728964246478,-233.281188,0.000139,2]
[340268478,1728964246488,-0.58116474,0.00013962,2]
[340268479,1728964246514,-1529.47956354,0.00013962,2]
[340268480,1728964246525,-392.18531531,0.00013962,2]
[340268483,1728964743945,550.0,0.0001,2]
[340268484,1728964991001,503.517265,0.00027,120]
[340268485,1728964998058,200.0,0.00027,120]
[340268486,1728965211031,288.0,0.00027,60]
[340268515,1728965431461,-222.0,0.00010949,2]
[340268517,1728965431470,-161.93,0.00010959,2]
[340268519,1728965431479,-166.11,0.00010959,2]
[340268521,1728965431489,-600.0,0.00012,2]
[340268523,1728965431498,-150.0,0.000125,2]
[340268525,1728965431507,-216.06895971,0.00013862,2]
[340268527,1728965431516,-222.0,0.00013961,2]
[340268528,1728965431524,-300.0,0.00013961,2]
[340268530,1728965431534,-2000.0,0.00013962,2]
[340268532,1728965431543,-200.0,0.00013962,2]
[340268533,1728965431552,-2000.0,0.00013962,2]
[340268535,1728965431562,-200.0,0.00013962,2]
[340268537,1728965431571,-182.7722517,0.00014011,2]
[340268539,1728965431580,-8410.67215089,0.00014021,2]
[340268541,1728965431592,-6576.90399969,0.00014021,2]
[340268542,1728965431604,-7141.25819299,0.00014021,2]
[340268544,1728965431619,-768.96618703,0.00014021,2]
[340268546,1728965431634,-4996.966294,0.00014021,2]
[340268558,1728965437511,-4333.0649579,0.00014021,2]
[340268559,1728965437521,-6308.6999909,0.00014031,2]
[340268560,1728965437531,-3593.7775891,0.00014041,2]
[340268561,1728965437540,-713.32713388,0.00014041,2]
[340268562,1728965437548,-219.32670211,0.0001405,2]
[340268563,1728965437558,-333.0,0.0001405,2]
[340268564,1728965437567,-557.71,0.00014096,2]
[340268565,1728965437576,-230.50827323,0.00014102,2]
[340268566,1728965437587,-1769.49172677,0.00014102,2]
[340268567,1728965437596,-200.0,0.00014102,2]
[340268568,1728965437607,-2000.0,0.00014102,2]
[340268569,1728965437616,-200.0,0.00014102,2]
[340268570,1728965437625,-222.0,0.00014233,2]
[340268571,1728965437634,-192.47929236,0.00014233,2]
[340268582,1728965442521,-307.51070764,0.00014233,2]
[340268583,1728965442530,-1657.48929236,0.00014243,2]
[340268585,1728965442574,-342.51070764,0.00014243,2]
[340268586,1728965442583,-30.14772351,0.00014243,2]
[340268593,1728965445408,-169.85227649,0.00014243,2]
[340268594,1728965445418,-1019.17691073,0.00014243,2]
[340268595,1728965445429,-980.82308927,0.00014243,2]
[340268596,1728965445438,-200.0,0.00014243,2]
[340268597,1728965445447,-150.99,0.00014243,2]
[340268598,1728965445456,-85.75134948,0.00014385,2]
[340268599,1728965445468,-1914.24865052,0.00014385,2]
[340268600,1728965445478,-200.0,0.00014385,2]
[340268601,1728965445487,-2000.0,0.00014385,2]
[340268602,1728965445497,-200.0,0.00014385,2]
[340268603,1728965445506,-2000.0,0.00014529,2]
[340268604,1728965445515,-200.0,0.00014529,2]
[340268605,1728965445525,-2000.0,0.00014529,2]
[340268606,1728965445534,-1506.0,0.000146,2]
[340268607,1728965445543,-535.12,0.00014678,2]
[340268608,1728965445552,-2881.0,0.00015,2]
[340268609,1728965445562,-427.0,0.00015,2]
[340268610,1728965445571,-1471.0,0.000151,2]